Cogmind - Beta 10.1 @@@ ROGUE MODE // 2020.09.20 @ 23:17:31 Player: dhtilly Result: Destroyed by Y-54 Guardian with Gatling Laser Performance ------------- Evolutions (4) 2000 Regions Visited (13) 2600 Robots Destroyed (191) 955 Value Destroyed (9113) 9113 Prototype IDs (36) 720 Alien Tech Used (0) 0 Bonus (5104) 5104 TOTAL SCORE: 20492 Bonus ------- High Alert Combat Kills 1024 Follower Combat Kills 1711 Entered Garrisons 800 Used RIF Installer 1500 Aligned with FarCom 300 Friendly Fire -231 Cogmind --------- Core Integrity 0/850 Matter 252/300 Energy 72/100 System Corruption 7% Temperature Cool (66) Movement Treading (265) Ox6 Location -6/Garrison Parts ------- > --- POWER (1) -------- (None) > --- PROPULSION (3) --- Advanced Treads Armored Wheel Armored Wheel > --- UTILITY (9) ------ High-capacity Storage Unit High-capacity Storage Unit High-capacity Storage Unit High-capacity Storage Unit Improved Light Armor Plating Relay Coupler [Swarmer] (10) Relay Coupler [Grunt] (27) Relay Coupler [Brawler] (28) Relay Coupler [Duelist] (1) > --- WEAPON (2) ------- Tesla Rifle Gauss Rifle > --- INVENTORY (36) --- Reinforced Deuterium Engine Light Antimatter Reactor Advanced Treads Wheel Compact Wheel Armored Wheel Armored Wheel Armored Wheel Advanced Heat Sink High-capacity Storage Unit Improved Terrain Scan Processor Improved Light Armor Plating Relay Coupler [NC] (43) Relay Coupler [NC] (31) Relay Coupler [NC] (28) Relay Coupler [Swarmer] (42) Relay Coupler [Brawler] (34) Relay Coupler [Brawler] (29) Relay Coupler [Brawler] (30) Relay Coupler [Hunter] (17) Relay Coupler [Behemoth] (10) Thief Drone Bay (3/3) Tesla Rifle Gatling Laser Proton Cannon Heavy Plasma Cannon Guided Plasma Cannon Gauss Rifle Rocket Array Improved Datajack Remote Datajack Remote Datajack Chainsword Peak State ------------ > --- POWER ------------ Heavy Deuterium Engine > --- PROPULSION ------- Armored Wheel Armored Huge Wheel > --- UTILITY ---------- Advanced Heat Sink High-capacity Storage Unit High-capacity Storage Unit High-capacity Storage Unit Improved Light Armor Plating Relay Coupler [NC] Relay Coupler [Grunt] Relay Coupler [Sentry] Relay Coupler [Sentry] > --- WEAPON ----------- Cooled Pulse Rifle Remote Datajack > --- INVENTORY -------- Deuterium Engine Nuclear Core Armored Treads Armored Treads Armored Wheel Advanced Heat Sink Medium Storage Unit Improved Terrain Scan Processor Relay Coupler [NC] Relay Coupler [Grunt] Relay Coupler [Grunt] Relay Coupler [Brawler] Relay Coupler [Brawler] Relay Coupler [Sentry] Relay Coupler [Demolisher] Thief Drone Bay Plasma Rifle Guided Plasma Cannon Enhanced Autogun Heavy Missile Launcher Rocket Array Improved Datajack Remote Datajack Remote Datajack Axe Chainsword [Rating: 56] Favorites ----------- Power Ion Engine Engine Ion Engine Power Core Light Fission Core Propulsion Wheel Treads Armored Treads Leg Carbon-fiber Leg Wheel Wheel Utility High-capacity Storage Unit Device Advanced Heat Sink Storage High-capacity Storage Unit Processor Improved Signal Interpreter Hackware Relay Coupler [Swarmer] Protection Improved Light Armor Plating Weapon Remote Datajack Energy Gun Cooled Pulse Rifle Energy Cannon Cooled Particle Cannon Ballistic Gun Autogun Launcher Heavy Missile Launcher Special Weapon Remote Datajack Slashing Weapon Chainsword Build | -11 -10 -10 -10 -9 -8 -7 -7 -7 -7 -6 -6 -6 -6 ------- Run | Scr Mat Min Exi Min Mat Fac Gar Sto Gar Fac Gar Fac Gar Slots Evolved 8 | . . . . . 4 2 . . . 2 . . . Power . | . . . . . . . . . . . . . . Propulsion 1 | . . . . . . . . . . 1 . . . Utility 7 | . . . . . 4 2 . . . 1 . . . Weapon . | . . . . . . . . . . . . . . Parts Attached 344 | 6 19 3 3 7 73 6 24 39 25 42 38 32 27 Power 18 | 1 4 . . 1 4 . . 2 1 1 3 . 1 Engine 12 | 1 1 . . 1 3 . . 2 1 1 1 . 1 Core 6 | . 3 . . . 1 . . . . . 2 . . Reactor . | . . . . . . . . . . . . . . Propulsion 64 | 2 3 . 1 . 9 2 3 7 4 6 15 7 5 Treads 11 | . . . . . 3 . 1 2 2 2 . . 1 Leg 16 | . . . . . . . . . . . 15 1 . Wheel 37 | 2 3 . 1 . 6 2 2 5 2 4 . 6 4 Hover . | . . . . . . . . . . . . . . Flight . | . . . . . . . . . . . . . . Utility 95 | 1 6 . 2 . 21 2 3 9 12 16 6 10 7 Device 13 | . . . . . 2 1 . 2 1 3 . 1 3 Storage 17 | 1 5 . 2 . 2 . . . . . . 6 1 Processor 3 | . 1 . . . 1 . . . . . . . 1 Hackware 33 | . . . . . . . 2 4 8 9 6 3 1 Protection 29 | . . . . . 16 1 1 3 3 4 . . 1 Artifact . | . . . . . . . . . . . . . . Weapon 167 | 2 6 3 . 6 39 2 18 21 8 19 14 15 14 Energy Gun 42 | 1 . . . . 19 1 1 5 1 6 2 4 2 Energy Cannon 7 | . . . . . . . . 2 1 1 . 1 2 Ballistic Gun 55 | 1 5 2 . 4 9 . 7 8 2 3 5 4 5 Ballistic Cannon . | . . . . . . . . . . . . . . Launcher 24 | . 1 1 . 2 6 1 4 2 . 2 3 . 2 Special Weapon 32 | . . . . . 5 . 6 4 3 3 3 5 3 Impact Weapon . | . . . . . . . . . . . . . . Slashing Weapon 7 | . . . . . . . . . 1 4 1 1 . Piercing Weapon . | . . . . . . . . . . . . . . Special Melee Weapon . | . . . . . . . . . . . . . . Unidentified Prototypes 11 | . . . . . 7 . . 4 . . . . . Parts Lost 78 | . 3 . . 1 15 . 5 7 7 18 13 4 5 Power 7 | . 1 . . . 1 . . . 1 2 1 . 1 Propulsion 28 | . 2 . . . 4 . 3 4 2 6 4 . 3 Utility 17 | . . . . . 5 . 1 1 2 5 2 1 . Weapon 26 | . . . . 1 5 . 1 2 2 5 6 3 1 Highest Loss Streak 5 | . 1 . . 1 4 . 3 2 5 4 5 2 3 Average Slot Usage (%) 93 | . 93 100 100 100 94 95 96 99 92 88 81 99 98 Engine 7 | . 10 14 14 14 8 7 7 7 6 5 1 6 5 Treads 1 | . . . . . 2 3 5 1 1 2 . . 3 Leg 2 | . . . . . . . . . . . 14 12 . Wheel 12 | . 22 28 28 28 14 11 6 12 8 11 . 7 14 Device 3 | . . . . . 1 4 7 3 4 5 6 2 5 Storage 23 | . 27 28 28 28 21 23 23 23 23 20 20 22 26 Processor 3 | . . . . . 8 7 7 7 2 . . . . Hackware 12 | . . . . . . . 3 19 19 24 19 33 26 Protection 7 | . . . . . 18 21 17 5 9 3 . . . Energy Gun 3 | . 3 . . . 5 6 . 3 1 4 1 5 4 Ballistic Gun 9 | . 24 27 28 27 11 7 10 5 . 1 6 . 1 Special Weapon 2 | . . . . . . . 2 3 6 4 2 4 4 Naked Turns . | . . . . . . . . . . . . . . Heaviest Build 156 | 12 59 59 75 76 127 130 133 124 124 121 115 150 156 Greatest Support 51 | 26 26 20 26 26 40 40 20 40 40 40 48 51 36 Greatest Overweight (x) 37 | . 5 2 2 2 12 6 13 12 6 9 37 4 12 Average Overweight (x) 3 | . 2 2 2 2 4 5 8 5 4 3 3 2 5 Largest Inventory Capacity 36 | 6 18 18 20 20 28 28 28 28 28 28 28 36 36 Average Capacity 25 | 5 15 18 18 20 23 28 28 28 28 28 28 30 36 Most Carried 36 | 6 15 17 18 20 28 28 28 28 28 28 28 36 36 Average Carried 24 | 3 11 15 17 18 22 27 26 27 26 24 25 29 33 Final Capacity 36 | 6 18 18 20 20 28 28 28 28 28 28 28 36 36 Final Carried 36 | 6 15 16 18 20 28 28 27 28 28 23 28 36 33 Class Distribution -------------------- 56% | Bothacker-Mutant 30% | Hauler-Mutant 12% | Mutant Dominant Class ---------------- Mutant | -10/Materials Mutant | -10/Mines Mutant | -10/Exiles Hauler-Mutant | -9/Mines Hauler-Mutant | -8/Materials Hauler-Mutant | -7/Factory Hauler-Mutant | -7/Garrison Bothacker-Mutant | -7/Storage Bothacker-Mutant | -7/Garrison Bothacker-Mutant | -6/Factory Bothacker-Mutant | -6/Garrison Bothacker-Mutant | -6/Factory Bothacker-Mutant | -6/Garrison Resources | -11 -10 -10 -10 -9 -8 -7 -7 -7 -7 -6 -6 -6 -6 ----------- Run | Scr Mat Min Exi Min Mat Fac Gar Sto Gar Fac Gar Fac Gar Matter Collected 7099 | 244 680 26 . 259 1321 59 447 950 382 905 803 530 493 Remotely . | . . . . . . . . . . . . . . Salvage Created 7559 | . 541 44 . 147 2654 219 487 600 690 565 715 348 549 Parts 393 | . 35 7 . 5 144 6 25 34 22 34 45 20 16 Haulers Intercepted 9 | . 2 . . . 5 . . 2 . . . . . Recyclers Shooed . | . . . . . . . . . . . . . . Parts Field Recycled . | . . . . . . . . . . . . . . Retrieved Matter . | . . . . . . . . . . . . . . Parts Self-Destructed . | . . . . . . . . . . . . . . Prevented . | . . . . . . . . . . . . . . Kills | -11 -10 -10 -10 -9 -8 -7 -7 -7 -7 -6 -6 -6 -6 ------- Run | Scr Mat Min Exi Min Mat Fac Gar Sto Gar Fac Gar Fac Gar Combat Hostiles Destroyed 148 | . 12 4 . 4 53 5 17 8 5 13 20 2 5 Melee 2 | . . . . . . . . . 1 1 . . . Guns 78 | . 10 1 . 4 34 2 1 6 . 3 13 2 2 Cannons 5 | . . . . . . . . . 4 1 . . . AOE 61 | . 2 3 . . 19 3 16 2 . 7 6 . 3 Classes Destroyed 16 | . 4 . . . 9 . 1 1 . 1 . . . Worker 15 | . 4 1 . . 3 . . 3 . 3 . 1 . Builder 3 | . . . . . . . . . . 2 . 1 . Tunneler 8 | . . . . . 4 1 . . . . . 3 . Hauler 9 | . 2 . . . 5 . . 2 . . . . . Recycler 4 | . . . . . 2 . . 1 . . . 1 . Operator 2 | . . . . . 2 . . . . . . . . Watcher 1 | . . . . . 1 . . . . . . . . Swarmer 35 | . 3 4 . . 9 . 3 1 1 3 10 . 1 Grunt 67 | . 9 . . 4 30 4 9 1 3 . 7 . . Brawler 2 | . . . . . 1 1 . . . . . . . Duelist 4 | . . . . . 3 . 1 . . . . . . Protector 1 | . . . . . 1 . . . . . . . . Sentry 19 | . . . . . 9 . 2 4 . 3 . . 1 Specialist 4 | . . . . . . . 2 . . . 2 . . Hunter 9 | . . . . . 1 . . 1 . 4 1 . 2 Programmer 8 | . . . . . . . . 1 1 3 . 2 1 Best Kill Streak 11 | . 5 4 . 3 10 3 11 5 2 5 5 2 3 Combat Bots Only 11 | . 3 3 . 3 8 3 11 3 2 3 5 1 3 Max Kills in Single Turn 4 | . 2 1 . 1 4 2 3 2 1 3 3 1 2 Gunslinging . | . . . . . . . . . . . . . . Exploded 3 | . 2 1 . . 3 2 3 2 . 3 3 . 2 Melee 1 | . . . . . . . . . 1 1 . . . Uniques/NPCs Destroyed . | . . . . . . . . . . . . . . Combat | -11 -10 -10 -10 -9 -8 -7 -7 -7 -7 -6 -6 -6 -6 -------- Run | Scr Mat Min Exi Min Mat Fac Gar Sto Gar Fac Gar Fac Gar Damage Taken 12757 | . 631 43 . 224 2787 141 1306 1358 1059 2292 1486 564 866 Core 1787 | . 118 . . 30 275 15 177 226 91 323 288 92 152 Absorbed by Shields . | . . . . . . . . . . . . . . Core Remaining (%) 54 | 100 . . . 40 50 . . . 27 . . . . Volleys Fired 792 | . 50 5 . 17 179 12 65 65 107 111 59 77 45 Largest 2 | . 2 2 . 2 2 2 2 2 2 2 2 2 2 Hottest 130 | . 70 46 . 46 108 75 100 120 115 125 113 97 130 Shots Fired 1137 | . 98 6 . 24 316 21 81 91 111 130 99 91 69 Gun 770 | . 96 2 . 22 287 18 34 49 17 59 78 59 49 Cannon 86 | . . . . . . . . 12 62 4 5 2 1 Launcher 70 | . 2 4 . 2 16 3 24 4 . 7 5 . 3 Special 211 | . . . . . 13 . 23 26 32 60 11 30 16 Kinetic 495 | . 85 2 . 22 166 9 29 41 5 31 65 13 27 Thermal 232 | . 11 . . . 56 . 8 14 74 21 10 37 1 Explosive 65 | . 2 4 . 2 16 3 19 4 . 7 5 . 3 Electromagnetic 155 | . . . . . 78 9 10 6 . 11 8 11 22 Robot Hit Streak 20 | . 12 3 . 14 18 4 16 12 20 14 12 10 14 Robot Miss Streak 7 | . 3 1 . 1 4 3 4 3 2 3 7 4 7 Penetration Max 1 | . . . . . . . . . . . 1 1 1 Secondary Targets 7 | . . . . 1 4 . . 1 . . 1 . . Max Gunslinging Chain 1 | . . . . 1 1 . . 1 . . 1 . . Shots Hit Robots 783 | . 67 3 . 21 217 15 45 62 85 105 71 58 34 Core Hits 390 | . 26 6 . 13 127 13 39 23 22 30 53 15 23 Critical Hits 14 | . . . . . 4 . . 2 4 2 1 . 1 Critical Kills 7 | . . . . . 1 . . 1 2 2 1 . . Critical Parts Destroyed 6 | . . . . . 2 . . 1 2 . . . 1 Melee Attacks 10 | . . . . . . . . . 1 8 . 1 . Impact . | . . . . . . . . . . . . . . Slashing 10 | . . . . . . . . . 1 8 . 1 . Piercing . | . . . . . . . . . . . . . . Sneak Attacks 1 | . . . . . . . . . 1 . . . . Combat Hostiles 1 | . . . . . . . . . 1 . . . . Follow-up Attacks 2 | . . . . . . . . . . 2 . . . Damage Inflicted 18988 | . 1159 223 . 425 5517 813 2283 1082 1993 2117 1510 784 1082 Guns 9610 | . 881 37 . 285 3523 253 276 578 381 983 944 742 727 Cannons 1882 | . . . . . . . . 242 1495 65 80 . . Explosions 7126 | . 273 186 . 140 1994 560 2007 262 . 863 486 . 355 Melee 365 | . . . . . . . . . 117 206 . 42 . Ramming 5 | . 5 . . . . . . . . . . . . Kinetic 5447 | . 782 37 . 285 1797 72 187 445 41 483 812 222 284 Thermal 4569 | . 99 . . . 1212 69 97 281 1835 391 97 419 69 Explosive 6145 | . 273 186 . 140 1344 491 1814 262 . 863 486 . 286 Electromagnetic 2457 | . . . . . 1164 181 185 94 . 174 115 101 443 Impact . | . . . . . . . . . . . . . . Slashing 365 | . . . . . . . . . 117 206 . 42 . Piercing . | . . . . . . . . . . . . . . Highest Corruption 7 | . . . . . 2 . . . 4 3 3 6 7 Average Corruption 3 | . . . . . 2 . . . 3 2 3 4 6 Corruption Purged . | . . . . . . . . . . . . . . Effects 135 | . . . . . 9 . . . 23 12 27 35 29 Message Errors 36 | . . . . . 2 . . . 4 2 12 8 8 Matter Fused 28 | . . . . . . . . . 7 1 5 6 9 Heat Flow Errors 14 | . . . . . 2 . . . 5 3 1 2 1 Energy Discharges 20 | . . . . . 1 . . . 3 3 4 6 3 Data Loss (minor) 17 | . . . . . 2 . . . 2 3 4 4 2 Data Loss (major) 2 | . . . . . . . . . . . . 2 . Misfires 2 | . . . . . . . . . . . . 1 1 Targeting Errors 14 | . . . . . . . . . 2 . 1 6 5 Weapon Failures 2 | . . . . . 2 . . . . . . . . Overload Shots 14 | . . . . . . . . . 11 3 . . . Effects 2 | . . . . . . . . . 2 . . . . Meltdown 2 | . . . . . . . . . 2 . . . . Overflow Damage 272 | . 32 . . . 93 25 38 . 20 53 4 . 7 Projectiles 20 | . . . . . . . . . 20 . . . . Explosions 204 | . 32 . . . 93 25 38 . . 5 4 . 7 Melee 48 | . . . . . . . . . . 48 . . . Knockbacks . | . . . . . . . . . . . . . . Impact . | . . . . . . . . . . . . . . Kinetic . | . . . . . . . . . . . . . . Secondary . | . . . . . . . . . . . . . . Self-Inflicted Damage 574 | . 17 1 . 47 343 30 58 . . . 42 . 36 Shots 20 | . 1 1 . 2 11 1 2 . . . 1 . 1 Rammed 1 | . 1 . . . . . . . . . . . . Targets Rammed 1 | . 1 . . . . . . . . . . . . Kicked . | . . . . . . . . . . . . . . Crushed . | . . . . . . . . . . . . . . Highest Temperature 365 | . 244 6 . 24 317 37 26 38 365 205 227 243 177 Average Temperature 66 | . 53 4 . 8 74 15 10 8 97 62 133 69 54 Received Heat Transfer 3360 | . 318 . . 99 1107 54 213 288 285 513 333 18 132 Effects 1 | . . . . . 1 . . . . . . . . Interference 1 | . . . . . 1 . . . . . . . . Siege Activations . | . . . . . . . . . . . . . . Robots Corrupted 4 | . . . . . . . . . . 1 1 . 2 Combat Hostiles 2 | . . . . . . . . . . 1 1 . . Parts Fried 10 | . . . . . 2 . . . . 2 3 . 3 Impact Corruptions . | . . . . . . . . . . . . . . Robots Melted . | . . . . . . . . . . . . . . Combat Hostiles . | . . . . . . . . . . . . . . Parts Melted 5 | . . . . . 1 . . . 1 . . 3 . Heat Transferred 6991 | . 296 . . . 1971 100 50 407 2448 657 185 777 100 Parts Sabotaged . | . . . . . . . . . . . . . . Parts Stolen . | . . . . . . . . . . . . . . Parts Stripped . | . . . . . . . . . . . . . . Power Chain Reactions 10 | . . . . . 7 1 1 . . . . . 1 Missiles Intercepted . | . . . . . . . . . . . . . . Alert | -11 -10 -10 -10 -9 -8 -7 -7 -7 -7 -6 -6 -6 -6 ------- Run | Scr Mat Min Exi Min Mat Fac Gar Sto Gar Fac Gar Fac Gar Peak Influence 1250 | . 227 352 . 81 1105 634 1250 726 702 368 466 318 365 Initial 609 | . . 37 . . . 445 443 609 356 368 45 244 222 Average 386 | . 87 156 . 47 567 515 982 584 471 61 235 167 283 Maximum Alert Level 4 | . 1 1 . . 4 2 4 3 3 1 2 1 1 Low Security (%) 36 | 100 95 46 . 100 15 . . . . 93 37 61 1 Level 1 27 | . 4 53 . . 40 . . . 29 6 53 38 98 Level 2 17 | . . . . . 4 100 13 85 63 . 9 . . Level 3 14 | . . . . . 32 . 56 14 7 . . . . Level 4 4 | . . . . . 6 . 30 . . . . . . Level 5 . | . . . . . . . . . . . . . . High Security . | . . . . . . . . . . . . . . Max Security . | . . . . . . . . . . . . . . Squads Dispatched 41 | . 1 . . . 12 2 . 5 . 15 . 6 . Investigation 4 | . . . . . 4 . . . . . . . . Extermination 6 | . . . . . . . . 1 . 2 . 3 . Reinforcement 10 | . 1 . . . 3 . . 1 . 4 . 1 . Assault 3 | . . . . . 3 . . . . . . . . Garrison 18 | . . . . . 2 2 . 3 . 9 . 2 . Intercept . | . . . . . . . . . . . . . . Construction Impeded 4 | . . . . . 1 . . . . 2 . 1 . Haulers Reinforced 1 | . . . . . . . . 1 . . . . . Stealth | -11 -10 -10 -10 -9 -8 -7 -7 -7 -7 -6 -6 -6 -6 --------- Run | Scr Mat Min Exi Min Mat Fac Gar Sto Gar Fac Gar Fac Gar Distress Signals 17 | . 2 . . . 10 . . 3 . 1 . 1 . Communications Jammed . | . . . . . . . . . . . . . . Distress Signals . | . . . . . . . . . . . . . . Times Spotted 342 | . 19 5 . 6 92 6 26 28 38 46 34 19 23 Peak Tracking Total 18 | . 3 3 . 3 8 3 6 5 18 6 6 4 8 Tactical Retreats 14 | . . . . . 5 1 1 . 4 . 3 . . Traps | -11 -10 -10 -10 -9 -8 -7 -7 -7 -7 -6 -6 -6 -6 ------- Run | Scr Mat Min Exi Min Mat Fac Gar Sto Gar Fac Gar Fac Gar Traps Triggered 39 | . 3 . . . 2 1 9 . 9 . 3 1 11 Indirectly . | . . . . . . . . . . . . . . Trap Hack Attempts . | . . . . . . . . . . . . . . Triggered . | . . . . . . . . . . . . . . Disarmed . | . . . . . . . . . . . . . . Reprogrammed . | . . . . . . . . . . . . . . Reused . | . . . . . . . . . . . . . . Traps Extracted . | . . . . . . . . . . . . . . Installed . | . . . . . . . . . . . . . . Triggered 1 | . . . . . 1 . . . . . . . . Exploded 1 | . . . . . 1 . . . . . . . . Machines | -11 -10 -10 -10 -9 -8 -7 -7 -7 -7 -6 -6 -6 -6 ---------- Run | Scr Mat Min Exi Min Mat Fac Gar Sto Gar Fac Gar Fac Gar Machines Disabled 32 | . 1 5 . . 7 . 4 1 5 3 4 . 2 Max in Single Turn 4 | . 1 4 . . 2 . 1 1 1 1 1 . 1 Garrison Access 1 | . . . . . 1 . . . . . . . . Garrison Relay 12 | . . . . . . . 3 . 4 . 3 . 2 Machines Sabotaged . | . . . . . . . . . . . . . . Garrisons Compromised . | . . . . . . . . . . . . . . Overloaded Fab Kills . | . . . . . . . . . . . . . . Fab Network Shutdowns . | . . . . . . . . . . . . . . Hacking | -11 -10 -10 -10 -9 -8 -7 -7 -7 -7 -6 -6 -6 -6 --------- Run | Scr Mat Min Exi Min Mat Fac Gar Sto Gar Fac Gar Fac Gar Machines Accessed 46 | . 6 . 3 1 13 1 . 8 . 8 . 6 . Terminals 30 | . 6 . . . 10 . . 6 . 6 . 2 . Fabricators 1 | . . . . . . . . . . . . 1 . Repair Stations 2 | . . . . . . . . 1 . . . 1 . Recycling Units . | . . . . . . . . . . . . . . Scanalyzers 3 | . . . . . 2 . . . . . . 1 . Garrison Access 6 | . . . . . 1 1 . 1 . 2 . 1 . Total Hacks 134 | . 18 . 11 1 52 3 . 15 . 23 . 11 . Successful 81 | . 12 . 11 1 32 2 . 7 . 9 . 7 . Failed 53 | . 6 . . . 20 1 . 8 . 14 . 4 . Catastrophic 14 | . . . . . 4 . . 3 . 6 . 1 . Database Lockouts . | . . . . . . . . . . . . . . Manual 46 | . 4 . 1 . 17 2 . 6 . 12 . 4 . Terminals 84 | . 18 . . . 36 . . 9 . 17 . 4 . Fabricators 2 | . . . . . . . . . . . . 2 . Repair Stations 5 | . . . . . . . . 3 . . . 2 . Recycling Units . | . . . . . . . . . . . . . . Scanalyzers 15 | . . . . . 14 . . . . . . 1 . Garrison Access 16 | . . . . . 2 3 . 3 . 6 . 2 . Terminal Hacks 53 | . 12 . 11 1 17 . . 5 . 6 . 1 . Record 12 | . . . 10 . . . . . . 2 . . . Part Schematic 1 | . . . . . 1 . . . . . . . . Robot Analysis 2 | . 1 . . . 1 . . . . . . . . Open Door 3 | . . . . 1 . . . 2 . . . . . Terminal Index 1 | . . . . . . . . . . 1 . . . Alert Level 6 | . 1 . . . 5 . . . . . . . . Unreport Threat 6 | . . . . . 3 . . 2 . 1 . . . Locate Traps 8 | . 5 . . . 2 . . . . . . 1 . Transport Status 2 | . 1 . . . 1 . . . . . . . . Recall Investigation 1 | . . . . . 1 . . . . . . . . Hauler Manifests 4 | . 1 . . . 3 . . . . . . . . Zone Layout 6 | . 3 . . . . . . 1 . 2 . . . EX-Prototype ID Bank 1 | . . . 1 . . . . . . . . . . Fabricator Hacks 2 | . . . . . . . . . . . . 2 . Load Schematic 1 | . . . . . . . . . . . . 1 . Build 1 | . . . . . . . . . . . . 1 . Repair Station Hacks 2 | . . . . . . . . . . . . 2 . Scan Component 1 | . . . . . . . . . . . . 1 . Repair 1 | . . . . . . . . . . . . 1 . Recycling Unit Hacks . | . . . . . . . . . . . . . . Scanalyzer 13 | . . . . . 13 . . . . . . . . Insert Component 6 | . . . . . 6 . . . . . . . . Analyze 7 | . . . . . 7 . . . . . . . . Garrison Access Hacks 6 | . . . . . 1 1 . 1 . 2 . 1 . Unlock Access 6 | . . . . . 1 1 . 1 . 2 . 1 . Unauthorized Hacks 5 | . . . . . 1 1 . 1 . 1 . 1 . Terminals . | . . . . . . . . . . . . . . Fabricators . | . . . . . . . . . . . . . . Repair Stations . | . . . . . . . . . . . . . . Recycling Units . | . . . . . . . . . . . . . . Scanalyzers . | . . . . . . . . . . . . . . Garrison Access 5 | . . . . . 1 1 . 1 . 1 . 1 . Reprogram 5 | . . . . . 1 1 . 1 . 1 . 1 . Data Cores Recovered 1 | . . . . . 1 . . . . . . . . Used . | . . . . . . . . . . . . . . Hacking Detections 38 | . 6 . . . 12 1 . 6 . 8 . 5 . Full Trace Events 4 | . 2 . . . 2 . . . . . . . . Feedback Events . | . . . . . . . . . . . . . . Feedback Blocked . | . . . . . . . . . . . . . . Robot Schematics Acquired . | . . . . . . . . . . . . . . Robots Built . | . . . . . . . . . . . . . . Matter . | . . . . . . . . . . . . . . Time . | . . . . . . . . . . . . . . Total Robot Build Rating . | . . . . . . . . . . . . . . Part Schematics Acquired 7 | . . . . . 7 . . . . . . . . Parts Built 2 | . . . . . . . . . . . . 2 . Matter 146 | . . . . . . . . . . . . 146 . Time 73 | . . . . . . . . . . . . 73 . Total Part Build Rating 6 | . . . . . . . . . . . . 6 . Parts Repaired 1 | . . . . . . . . . . . . 1 . Time 13 | . . . . . . . . . . . . 13 . Parts Recycled . | . . . . . . . . . . . . . . Recycled Matter . | . . . . . . . . . . . . . . Retrieved Matter . | . . . . . . . . . . . . . . Retrieved Components . | . . . . . . . . . . . . . . Parts Scanalyzed 6 | . . . . . 6 . . . . . . . . Part Schematics Acquired 6 | . . . . . 6 . . . . . . . . Parts Damaged . | . . . . . . . . . . . . . . Bothacking | -11 -10 -10 -10 -9 -8 -7 -7 -7 -7 -6 -6 -6 -6 ------------ Run | Scr Mat Min Exi Min Mat Fac Gar Sto Gar Fac Gar Fac Gar Used RIF Installer 3 | . . . . . . . 1 . 1 . 1 . . Hotswap 1 | . . . . . . . . . . . 1 . . Command Fork 1 | . . . . . . . . . 1 . . . . Robots Hacked 99 | . . . . . . . 2 14 19 31 7 17 9 Non-combat 24 | . . . . . . . . 4 . 9 . 11 . Combat 75 | . . . . . . . 2 10 19 22 7 6 9 Robot Hacks Applied 117 | . . . . . . . 3 16 22 37 8 22 9 parse_system 15 | . . . . . . . . . 5 6 1 1 2 no_distress 5 | . . . . . . . . . . . . 5 . ignore_repairs 3 | . . . . . . . . . . . . 3 . drop_inventory 4 | . . . . . . . . 3 . . . 1 . find_recycling 3 | . . . . . . . . . . . . 3 . ignore_parts 3 | . . . . . . . . . . . . 3 . purge_threat 2 | . . . . . . . . . . 2 . . . summon_haulers 1 | . . . . . . . . . . 1 . . . mark_security 2 | . . . . . . . . . . 2 . . . scatter_targeting 3 | . . . . . . . . 2 1 . . . . disrupt_area 1 | . . . . . . . . 1 . . . . . overload_power 2 | . . . . . . . . 1 . . 1 . . amplify_resonance 5 | . . . . . . . . 1 2 1 . . 1 wipe_record 3 | . . . . . . . . 2 . 1 . . . disable_weapons 2 | . . . . . . . . . . 1 . 1 . reboot_system 5 | . . . . . . . . . 2 3 . . . overwrite_iff 15 | . . . . . . . . 3 5 2 4 . 1 streamctrl_high 1 | . . . . . . . 1 . . . . . . formatsys_low 4 | . . . . . . . . 1 . 3 . . . formatsys_high 38 | . . . . . . . 2 2 7 15 2 5 5 Relay Couplers Released 54 | . . . . . 2 . 11 . 18 . 14 . 9 Machine Destruction 54 | . . . . . 2 . 11 . 18 . 14 . 9 Attached 33 | . . . . . . . 2 4 8 9 6 3 1 Robots Rewired 6 | . . . . . . . 6 . . . . . . Allies Hacked 2 | . . . . . . . . . 1 . . . 1 Hacks Repelled . | . . . . . . . . . . . . . . Allies | -11 -10 -10 -10 -9 -8 -7 -7 -7 -7 -6 -6 -6 -6 -------- Run | Scr Mat Min Exi Min Mat Fac Gar Sto Gar Fac Gar Fac Gar Total Allies 92 | . . 3 . 1 3 1 8 18 15 20 8 8 7 Largest Group 11 | . . 3 3 3 3 1 7 10 10 11 3 6 7 Highest-Rated Group 222 | . . 40 40 40 48 32 152 173 173 220 76 190 222 Highest-Rated Ally 47 | . . 16 16 31 16 32 32 32 32 47 47 41 41 Total Orders 10 | . . . . . . . . . . 8 . 2 . STAY 7 | . . . . . . . . . . 6 . 1 . FOLLOW 3 | . . . . . . . . . . 2 . 1 . Ally Attacks 379 | . . 15 . 13 29 2 18 77 81 60 17 27 40 Total Damage 8078 | . . 170 . 139 348 6 606 1615 1803 1553 263 661 914 Kills 64 | . . 4 . 2 3 . 7 10 11 12 3 8 4 Allies Corrupted . | . . . . . . . . . . . . . . Allies Melted . | . . . . . . . . . . . . . . Intel | -11 -10 -10 -10 -9 -8 -7 -7 -7 -7 -6 -6 -6 -6 ------- Run | Scr Mat Min Exi Min Mat Fac Gar Sto Gar Fac Gar Fac Gar Robot Analysis Total 2 | . 1 . . . 1 . . . . . . . . Derelict Logs Recovered 3 | . . . . 3 . . . . . . . . . Drone Launches . | . . . . . . . . . . . . . . Drone Recoveries . | . . . . . . . . . . . . . . Exploration | -11 -10 -10 -10 -9 -8 -7 -7 -7 -7 -6 -6 -6 -6 ------------- Run | Scr Mat Min Exi Min Mat Fac Gar Sto Gar Fac Gar Fac Gar Turns Passed 13940 | 57 1048 254 399 638 2413 307 1565 988 1110 1541 1614 1199 807 Spaces Moved 7432 | 45 766 206 360 505 1138 133 647 519 517 925 693 604 374 Core 7 | 1 . . . . . . . . . . 6 . . Treads 331 | . . . . . 125 33 138 6 24 3 . . 2 Legs 915 | . . . . . . . . . . . 577 338 . Wheels 6179 | 44 766 206 360 505 1013 100 509 513 493 922 110 266 372 Hover . | . . . . . . . . . . . . . . Flight . | . . . . . . . . . . . . . . Fastest Speed 50 | 50 90 100 100 110 110 140 140 130 135 115 160 116 126 Average Speed 142 | 87 108 100 106 110 137 162 201 141 143 131 195 152 142 Slowest Speed 1900 | 90 130 100 110 110 230 230 290 290 230 210 1900 210 265 Overloaded Moves . | . . . . . . . . . . . . . . Propulsion Burnouts . | . . . . . . . . . . . . . . Robots Hopped . | . . . . . . . . . . . . . . Cave-ins Triggered . | . . . . . . . . . . . . . . Exploration Rate (%) 57 | 3 95 38 73 99 90 3 73 87 77 23 71 14 53 Regions Visited 13 Branch Regions 4 Pre-discovered Areas 2 | . . . 1 1 . . . . . . . . . Known Exits Taken 5 | . . . . . 1 1 . 1 . 1 . 1 . Unknown Exits Taken 5 | 1 1 1 1 1 . . . . . . . . . Scrap Searched 2 | . . 1 . 1 . . . . . . . . . Spaces Dug 13 | . . . . . 10 . . . . . . 2 1 Terrain Destroyed 549 | . 23 20 . 16 169 35 70 38 . 31 80 3 64 Melee . | . . . . . . . . . . . . . . Projectile 19 | . . . . . 11 . . 2 . . . 3 3 AOE 530 | . 23 20 . 16 158 35 70 36 . 31 80 . 61 Terrain Rammed . | . . . . . . . . . . . . . . Walls Destroyed . | . . . . . . . . . . . . . . Machines Disabled . | . . . . . . . . . . . . . . Actions | -11 -10 -10 -10 -9 -8 -7 -7 -7 -7 -6 -6 -6 -6 --------- Run | Scr Mat Min Exi Min Mat Fac Gar Sto Gar Fac Gar Fac Gar Total 9756 | 59 899 247 377 566 1681 206 824 701 800 1146 859 804 587 Wait 600 | 3 29 32 7 32 217 52 14 41 46 40 21 38 28 Move 7419 | 44 765 205 359 504 1137 132 646 518 516 924 692 603 374 Hop . | . . . . . . . . . . . . . . Pick Up 204 | 6 20 1 4 4 35 3 13 15 25 18 19 26 15 Fast Attach 65 | 6 12 . . 1 18 . . 10 1 4 8 3 2 Attach 108 | . 3 1 1 1 20 2 5 10 12 24 13 9 7 Detach 30 | . 2 1 . . 7 . . 5 5 2 1 4 3 Swap 171 | . 4 2 2 5 35 4 19 19 12 14 17 20 18 Drop 134 | . 13 . 4 2 33 1 9 17 14 2 11 14 14 Fire 792 | . 50 5 . 17 179 12 65 65 107 111 59 77 45 Melee 8 | . . . . . . . . . 1 6 . 1 . Ram 1 | . 1 . . . . . . . . . . . . Kick . | . . . . . . . . . . . . . . Crush . | . . . . . . . . . . . . . . Escape Stasis 215 | . . . . . . . 49 . 60 . 18 8 80 Rewire 9 | . . . . . . . 4 1 1 1 . 1 1 Trap . | . . . . . . . . . . . . . . Miscellaneous . | . . . . . . . . . . . . . . Route ------- -11/Scrapyard -10/Materials (discovered 4 exits: *Mat x3 / [*Min]) -10/Mines (discovered 2 exits: *Mat / *Exi) -10/Exiles -9/Mines (discovered 2 exits: *Mat x2) -8/Materials (discovered 3 exits: *Fac x3) -7/Factory -7/Garrison (discovered 3 exits: *Sto x3) -7/Storage (discovered 2 exits: *Fac / Gar) -7/Garrison (discovered 3 exits: *Fac x3) -6/Factory (discovered 2 exits: Gar / Gar) -6/Garrison (discovered 2 exits: *Fac x2) -6/Factory -6/Garrison (discovered 1 exit: [*Fac]) History --------- Turn | Location | Event 27 | -11/Scrapyard | Discovered new exit (range 15) 58 | -11/Scrapyard | Entered Materials 300 | -10/Materials | Build established: Mutant 320 | -10/Materials | Discovered new exit (range 11) 402 | -10/Materials | Discovered new exit (range 8) 599 | -10/Materials | Discovered new exit (range 8) 697 | -10/Materials | Discovered new exit (range 4) 721 | -10/Materials | Identified exit to Materials 1106 | -10/Materials | Entered Mines 1198 | -10/Mines | Assisted by bots powering up and referring to "LRC-V3" 1214 | -10/Mines | Discovered exit to Materials (range 12) 1323 | -10/Mines | Deemed a non-threat by the Exiles lab entrance 1323 | -10/Mines | Discovered new exit (range 5) 1360 | -10/Mines | Entered Exiles 1360 | -10/Exiles | Accompanied by 3 allies 1387 | -10/Exiles | Met 8R-AWN 1402 | -10/Exiles | Met EX-HEX 1434 | -10/Exiles | Met EX-BIN 1446 | -10/Exiles | Aligned with FarCom system 1447 | -10/Exiles | Given EX-Vault access code 1483 | -10/Exiles | Opened EX-Vault 1492 | -10/Exiles | Found Gui. Plasma Cannon 1517 | -10/Exiles | Warned to stay clear of 0b10 Research branches 1550 | -10/Exiles | Met EX-DEC 1557 | -10/Exiles | Learned location of Zion (-6) 1743 | -10/Exiles | Discovered new exit (range 10) 1759 | -10/Exiles | Left Exiles lab with Gui. Plasma Cannon 1759 | -10/Exiles | Entered Mines 1759 | -9/Mines | Accompanied by 3 allies 1770 | -9/Mines | Discovered new exit (range 8) 1850 | -9/Mines | Learned Materials emergency access door positions 1925 | -9/Mines | Discovered new exit (range 11) 1927 | -9/Mines | Core integrity fell below 50% 2001 | -9/Mines | Learned location of Storage (-7) 2019 | -9/Mines | Received a Mining Laser from a helpful Derelict 2023 | -9/Mines | Build established: Hauler-Mutant 2093 | -9/Mines | Learned 8 Materials zone layouts 2216 | -9/Mines | Found the Drone Emporium 2220 | -9/Mines | Found Prototype Device 2288 | -9/Mines | Found a hidden stash of uninstalled traps 2397 | -9/Mines | Entered Materials 2397 | -8/Materials | Evolved 4 slots: Utility x4 2398 | -8/Materials | Identified exit to Factory 2462 | -8/Materials | Identified Thief Drone Bay 3661 | -8/Materials | Lost 4 parts (2u2w) 3746 | -8/Materials | Garrison activated, responded to threat 3811 | -8/Materials | Destroyed 8 combat bots 3840 | -8/Materials | Identified exit to Garrison 3861 | -8/Materials | Garrison activated, responded to threat 4397 | -8/Materials | First assault squad dispatched 4618 | -8/Materials | Discovered exit to Factory (range 12) 4810 | -8/Materials | Entered Factory 4810 | -7/Factory | Evolved 2 slots: Utility x2 4931 | -7/Factory | Garrison activated, responded to threat 4975 | -7/Factory | Identified exit to Garrison 5117 | -7/Factory | Entered Garrison 5117 | -7/Garrison | Accompanied by 1 ally 5170 | -7/Garrison | Triggered checkpoint 5209 | -7/Garrison | Garrison Relay disabled 5299 | -7/Garrison | Triggered checkpoint 5306 | -7/Garrison | Triggered checkpoint 5337 | -7/Garrison | Triggered checkpoint 5358 | -7/Garrison | Triggered checkpoint 5386 | -7/Garrison | Destroyed 11 combat bots 5388 | -7/Garrison | Lost 3 parts (1n1u1w) 5605 | -7/Garrison | Discovered new exit (range 14) 5749 | -7/Garrison | Discovered new exit (range 12) 5769 | -7/Garrison | Identified exit to Storage 5961 | -7/Garrison | Discovered exit to Storage (range 9) 5998 | -7/Garrison | Installed Relay Interface Framework 6114 | -7/Garrison | Triggered checkpoint 6208 | -7/Garrison | Garrison Relay disabled 6313 | -7/Garrison | Build established: Bothacker-Mutant 6470 | -7/Garrison | Triggered checkpoint 6572 | -7/Garrison | Garrison Relay disabled 6682 | -7/Garrison | Entered Storage 6682 | -7/Storage | Accompanied by 7 allies 6968 | -7/Storage | Garrison activated, responded to threat 7128 | -7/Storage | Found Prototype Launcher 7128 | -7/Storage | Identified Rocket Array 7151 | -7/Storage | Discovered new exit (range 16) 7162 | -7/Storage | Identified exit to Garrison 7278 | -7/Storage | Core integrity fell below 50% 7405 | -7/Storage | Assisted by bots powering up and referring to "LRC-V3" 7670 | -7/Storage | Entered Garrison 7670 | -7/Garrison | Accompanied by 10 allies 7677 | -7/Garrison | Expanded RIF knowledge: Command Fork 7732 | -7/Garrison | Triggered checkpoint 7840 | -7/Garrison | Garrison Relay disabled 7910 | -7/Garrison | Triggered checkpoint 7943 | -7/Garrison | P-60 Hacker assimilated allied G-47 Trooper 7966 | -7/Garrison | Lost 5 parts (1p2n2u) 8048 | -7/Garrison | Discovered new exit (range 10) 8059 | -7/Garrison | Identified exit to Factory 8112 | -7/Garrison | Triggered checkpoint 8161 | -7/Garrison | Garrison Relay disabled 8292 | -7/Garrison | Discovered exit to Factory (range 13) 8304 | -7/Garrison | Triggered checkpoint 8394 | -7/Garrison | Garrison Relay disabled 8492 | -7/Garrison | Triggered checkpoint 8590 | -7/Garrison | Triggered checkpoint 8658 | -7/Garrison | Triggered checkpoint 8696 | -7/Garrison | Garrison Relay disabled 8751 | -7/Garrison | Discovered exit to Factory (range 12) 8780 | -7/Garrison | Entered Factory 8780 | -6/Factory | Accompanied by 7 allies 8780 | -6/Factory | Evolved 2 slots: Propulsion x1, Utility x1 8936 | -6/Factory | Garrison activated, responded to threat 9574 | -6/Factory | Identified exit to Garrison 9614 | -6/Factory | Lost 3 parts (1u2w) 9660 | -6/Factory | Garrison activated, responded to threat 9754 | -6/Factory | Lost 3 parts (1p1n1u) 9925 | -6/Factory | Identified exit to Garrison 10065 | -6/Factory | P-60 Hacker assimilated allied Administrator 5d 10126 | -6/Factory | Lost 4 parts (1n1u2w) 10305 | -6/Factory | Lost 3 parts (1p2n) 10321 | -6/Factory | Entered Garrison 10394 | -6/Garrison | Triggered checkpoint 10407 | -6/Garrison | Garrison Relay disabled 10661 | -6/Garrison | Triggered checkpoint 10678 | -6/Garrison | Triggered checkpoint 10731 | -6/Garrison | Lost 3 parts (1p1u1w) 10916 | -6/Garrison | Discovered new exit (range 14) 11111 | -6/Garrison | Discovered new exit (range 15) 11147 | -6/Garrison | Expanded RIF knowledge: Hotswap 11194 | -6/Garrison | Triggered checkpoint 11195 | -6/Garrison | Core integrity fell below 50% 11250 | -6/Garrison | Lost 5 parts (3n1u1w) 11273 | -6/Garrison | Garrison Relay disabled 11770 | -6/Garrison | Triggered checkpoint 11824 | -6/Garrison | Garrison Relay disabled 11935 | -6/Garrison | Entered Factory 12070 | -6/Factory | Repaired Hcp. Storage Unit 12524 | -6/Factory | Fabricated Adv. Treads? 12964 | -6/Factory | Garrison activated, responded to threat 12971 | -6/Factory | Core integrity fell below 20% 13073 | -6/Factory | Identified exit to Garrison 13134 | -6/Factory | Entered Garrison 13134 | -6/Garrison | Accompanied by 6 allies 13168 | -6/Garrison | Triggered checkpoint 13224 | -6/Garrison | Garrison Relay disabled 13378 | -6/Garrison | Triggered checkpoint 13442 | -6/Garrison | Triggered checkpoint 13443 | -6/Garrison | Lost 3 parts (2n1w) 13458 | -6/Garrison | Triggered checkpoint 13466 | -6/Garrison | P-60 Hacker assimilated allied S-27 Virus 13670 | -6/Garrison | Triggered checkpoint 13720 | -6/Garrison | Garrison Relay disabled 13781 | -6/Garrison | Discovered new exit (range 12) 13941 | -6/Garrison | Destroyed by Y-54 Guardian with Gatling Laser Last Messages --------------- 13870_ A bubble of rippling energy engulfs the area. 13870_ Field strength at 90. 13871_ Field strength at 80. 13872_ Field strength at 70. 13873_ Field strength at 60. 13874_ Field strength at 50. 13875_ Field strength at 40. 13876_ Field strength at 30. 13877_ System corrupted: Matter fused (-5). 13877_ Field strength at 20. 13878_ Field strength at 10. 13879_ Stasis field depleted. 13897_ System corrupted: FCS attempts to trigger Tesla Rifle. 13897_ System corrupted: Tesla Rifle misfires. 13913_ Jacked Y-54 Guardian... >>parse_system Reading system data... 13933_ Slug penetrates Y-54 Guardian. 13938_ Imp. Deuterium Engine destroyed. 13939_ Slug penetrates Y-54 Guardian. Map ----- +----------------------------------------------------+ | ?????????????????????????????????????????????????? | | ?????????????????????????????????????????????????? | | ?????????????????????????????????????????????????? | | ?????????????????????????????????????????????????? | | ?????????????????????????????????????????????????? | | ?????????????????????????????????????????????????? | | ?????????????????????????????????????????????????? | | ?????????????????????????????????????????????????? | | ?????????????????????????????????????????????????? | | ?????????????????????????????????????????????????? | | ?????????????????????????????????????????????????? | | ?????????????????????????????????????????????????? | | ?????????????????????????????????????????????????? | | ?????????????????????????????????????????????????? | | ?????????????????????????????????????????????????? | | ??????????????????###????????????????????????????? | | ?????????????????? ????????????????????????????? | | ?????######??????# ????????????????????????????? | | ????? #??????# #???###??????????????????????? | | ?????? #??????# #???# #??????????????????????? | | ?????? #??????# #???# #????????h?????????????? | | ??????# #??????# #???# #??????????????????????? | | ??????# #???#### #???# #??????????????????????? | | ??????# #???# #" #??? #??????????????????????? | | ??????# #???# "#%"#???# #??????????????????????? | | ??????# #####%##" #???#@#??????????????????????? | | ??????# ## % ## #???# #??????????????????????? | | ??????# ##! ## ##??# #??????????????????????? | | ??????# Y####Y##### ######???????????? | | ??????# "" #???????????? | | ??????# = ^ "%#### ##### ## #???????????? | | ??????#^ ## ## "#??# #??????????????????????? | | ????### [ ## #### #??????????????????????? | | ????# * = = # #??????????????????????? | | ????# ! * #######???????????????????? | | ????# # #???????????????????? | | ????# [ [ = ##### #???????????????????? | | ????### ##%[ ###???# #???????????????????? | | ####### ## ## #######"##??????????????????? | | * #??????????????????? | | #??????????????????? | | ####### [% =####### #??????????????????? | | ??????## ## =## #????# #??????????????????? | | ???????# ## ##* !#????# #??????????????????? | | ???????# ######## ! [ # #??????????????????? | | ???????# #?????# # ####! #????#####?????????? | | ???????# #????# # # #??#%=#????#! !#?????????? | | ???????# #????# # #?#??#* #????#! !#?????????? | | ######## #????# # #???## ##???#! #?????????? | | #???? %%# #####" "######=######?????? | +----------------------------------------------------+ Best States ------------- Heat Dissipation 56 Energy Generation 18 Energy Capacity 310 Matter Stores 399 Matter Capacity 450 Sight Range 16 Terrain Scan Density 10 Armor Coverage 600 Weapon Shielding 33 Evasion (%) 44 Target Analysis 5 Recoil Reduction 2 Relay Coupler Types 120 Relay Coupler Value 5 Item Schematics ----------------- Imp. Signal Interpreter | -8/Materials | Scanalyzed Adv. Treads | -8/Materials | Scanalyzed Imp. Medium Armor Plating | -8/Materials | Scanalyzed Datajack | -8/Materials | Hacked Enh. Autogun | -8/Materials | Scanalyzed Katana | -8/Materials | Scanalyzed Nuclear Core | -8/Materials | Scanalyzed Robot Schematics ------------------ None Fabricated ------------ Adv. Treads | x2 | -6/Factory Alien Tech Used ----------------- None Achievements -------------- Beloved Overkill Challenges ------------ None Game ------ Seed LightRelayBlade Manual? 0 Play Time 03:33:51 Cumulative 73.2 hours Start 2020.09.18 @ 23:46:04 End 2020.09.20 @ 23:17:31 Sessions 13 Manual Loads 0 Difficulty Rogue Special Mode None Game No. 40 Rogue 40 Adventurer 0 Explorer 0 Win Type - Total 0 Types 0/0/0/0/0/0/0/0/0 Lore% 29 Gallery% 49 Achievement% 37 Wizard Run 0 Options --------- ASCII 0 Keyboard 1 Movement Vi Keybinds 0 Fullscreen 2 Font 12/Terminus Map View 83x54 Tactical HUD 1 Map Filters NONE Filters NONE Steam 1 RUN: 8efc4b7d-8ee5-4948-817b-f4b537a8169a